{"text_format":"1","workbook":"xlsx","n_sheets":3,"sheets":["Abaques","Climater","Listes"],"not_rendered":{"charts":0,"images":3,"macros":1,"external_links":0,"defined_names":0,"comments":1,"pivot_tables":0},"unopened":[],"bounds":{"document_bytes":16777216,"sheet_cells":100000,"rows_first":2000,"rows_last":500,"rows_between":2000,"halvings":0,"cell_chars":16384,"cell_head_chars":4096},"cells_cut":0,"cells_raw":0,"read":"whole","date_system":"1900"}

{"sheet":"Abaques","index":0,"n_rows":18,"n_cols":12,"rows_kept":18,"cut":false,"hidden":true,"merged":[[1,11,3,16],[12,7,14,7],[15,7,17,7]]}
[null,"Cas d'un immeuble de bureaux - besoins en climatisation très bien définis - Pompe très bien sélectionnée (débit et HMT) - Fonctionnement de 6h30 à 20h30 en semaine"]
[null,"Scénario 1 - fonctionnement 5/7j 13/24h pour climatiser seulement le temps d'ouverture des bureaux",null,null,null,null,null,null,null,null,null,"NB : la sélection de la pompe dépend de la puissance du groupe mais surtout de la constitution du réseau de distribution et de sa perte de charge. C'est pour cela que les puissances électriques des pompes pour une même puissance froid peuvent etre très différentes."]
[null,"Scénario 2 - fonctionnement 7/7j 24/24h pour climatiser les bureaux et un local serveur par exemple"]
[null,"Scénario 3 - fonctionnement scénario 1 sur période été du 15 octobre au 15 mai (7mois)"]
[]
[null,"Calculs de consommation avec pompe à débit fixe"]
[null,"Puissance froid installation (en kWf)",0,100,300,500]
[null,"Puissance électrique pompe à 100% (en kW) - bien dimmensionnée",0,1.0860000000000001,3.6230000000000002,8.173]
[null,"Puissance électrique pompe à 100% (en kW) - mal dimmensionnée",0,1.849,6.5350000000000001,11.98]
[]
[null,"Calculs de consommation avec pompe à débit variable"]
[null,"Puissance froid installation (en kWf)",0,100,300,500,"scénario"]
[null,"Consommation annuelle pompe à débit variable (en kWh)",0,1272.2337142857145,5790.614285714285,14815.821428571429,1,"Bien dimensionnée"]
[null,"Consommation annuelle pompe à débit variable (en kWh)",0,2231.0840000000003,10443.324999999999,26907.060714285704,2]
[null,"Consommation annuelle pompe à débit variable (en kWh)",0,796.30000000000018,3492.8085714285712,8861.0042857142871,3]
[null,"Consommation annuelle pompe à débit variable (en kWh)",0,3594.9224285714276,13360.105571428574,19871.608857142855,1,"Mal dimensionnée"]
[null,"Consommation annuelle pompe à débit variable (en kWh)",0,6533.4081428571444,24324.459857142865,35984.468571428581,2]
[null,"Consommation annuelle pompe à débit variable (en kWh)",0,2145.3852857142851,7952.9227142857162,11935.145999999999,3]

{"sheet":"Climater","index":1,"n_rows":36,"n_cols":9,"rows_kept":36,"cut":false,"hidden":false,"merged":[[0,0,0,9],[20,6,21,6],[20,7,21,7],[20,0,21,2],[20,5,21,5],[22,0,23,2],[22,4,23,4],[22,5,23,5],[22,6,23,6],[22,7,23,7]]}
["Outil Climater\nEstimation des économies liées à un passage sur un système à débit variable associé à des vannes 2 voies"]
[]
["Données du groupe de production d'eau glacée"]
["Surface à climatiser [m2]",null,2000,null,null,null,null,"cellules modifiables"]
["Cout de l'élec [€/kWh] (facultatif)"]
["Puissance du GEG [kWfroid]",null,180]
["Nombre de terminaux",null,110]
["Ratio de consommation [Wfroid/m2]",null,{"$f":"IFERROR(C6*1000/C4,\"\")","v":90},{"$f":"IF(C8=\"\",\"\",IF(C8>120,\"Pompe surdimensionnée ( >120 )\",\"Pompe bien dimensionnée ( <120 )\"))","v":"Pompe bien dimensionnée ( <120 )"}]
[]
["Période de fonctionnement",null,null,null,null,null,"Développé par",null,"v1"]
["Type d'activité",null,"Bureau"]
["Période de fonctionnement de la climatisation sur l'année",null,"Uniquement en été"]
["Puissance nominale estimée de la pompe à débit fixe [kW]",null,{"$f":"approx(C35,E35,C34,E34,C6)","v":2.1008}]
[]
["Estimation des économies après migration en débit variable avec vannes 2 voies"]
[]
[null,null,"Pompe à débit fixe",null,"Pompe à débit variable"]
["Consommation annuelle de la pompe (en kWh)",null,{"$f":"IFERROR(C13*C26*(C32*C27/7),0)","v":4153.4566666666669},null,{"$f":"IFERROR(approx(C36,E36,C34,E34,C6),0)","v":1874.9034285714285}]
["Coût annuel (en €)",null,{"$f":"C18*C28","v":519.18208333333337},null,{"$f":"E18*C28","v":234.36292857142857}]
[]
["Le passage à un système de pompes à débit variable représente un gain potentiel annuel de",null,null,null,{"$f":"C18-E18","v":2278.5532380952382},"soit ",{"$f":"IFERROR(E21/C18,0)","v":0.5485920333253117},"d'économies annuelles"]
[null,null,null,null,{"$f":"C19-E19","v":284.81915476190477}]
["Estimation du montant des travaux pour migration en débit variable avec vannes 2 voies:",null,null,null,"Entre",{"$f":"300*C7","v":33000},"et",{"$f":"500*C7","v":55000}]
[]
[]
["Nombre d'heures de fonctionnement par jour [h/jour]",null,{"$f":"IF(C11=Listes!A3,24,13)","v":13}]
["Nombre de jours de fonctionnement par semaine [j/semaine]",null,{"$f":"IF(OR(C31=1,C31=3),5,7)","v":5}]
["Cout de l'énergie pris en compte [€/kWh]",null,{"$f":"IF(C5=0,0.125,C5)","v":0.125}]
["dimmensionnement",null,{"$f":"IF(C8>120,2,1)","v":1}]
["dimmensionnement variable",null,{"$f":"IF(C29=1,0,IF(C29=2,3))","v":0}]
["scénario",null,{"$f":"IF(C11=\"Bureau\",IF(C12=Listes!B2,3,IF(C12=Listes!B3,1,\"\")),IF(C11=\"Continu\",2))","v":3}]
["Nombre de jours d'utilisation selon scénario",null,{"$f":"IF(OR(C31=1,C31=2),365,365*(7/12))","v":212.91666666666669}]
[null,null,"pompe inf",null,"pompe sup"]
["Abaques",null,{"$f":"inferieur(C6,Listes!C1:C4)","v":100},null,{"$f":"superieur(C6,Listes!C1:C4)","v":300}]
["Puissance électrique pompe à débit fixe [kW]",null,{"$f":"INDEX(Abaques!$C$8:$F$9,$C$29,MATCH(C34,Abaques!$C$7:$F$7,0))","v":1.0860000000000001},null,{"$f":"INDEX(Abaques!$C$8:$F$9,$C$29,MATCH(E34,Abaques!$C$7:$F$7,0))","v":3.6230000000000002}]
["Consommation annuelle pompe à débit variable (en kWh)",null,{"$f":"INDEX(Abaques!$C$13:$F$18,$C$31+$C$30,MATCH(C34,Abaques!$C$7:$F$7,0))","v":796.30000000000018},null,{"$f":"INDEX(Abaques!$C$13:$F$18,$C$31+$C$30,MATCH(E34,Abaques!$C$7:$F$7,0))","v":3492.8085714285712}]

{"sheet":"Listes","index":2,"n_rows":4,"n_cols":3,"rows_kept":4,"cut":false,"hidden":true,"merged":[]}
["Type d'activité","Utilisation e la climatisation",0]
["Bureau","Uniquement en été",100]
["Continu","Toute l'année",300]
[null,null,500]